bitfinex-derivatives/quotes_BNBF0:USTF0_20250406
["timestamp","ask_amount","ask_price","bid_price","bid_amount"]
[1743963603591,3.11380614,560.24,559.24,0.29852267]
[1743963603797,0.61154052,560.23,559.22,0.29852267]
[1743963603996,1.90369853,560.23,559.22,0.29852267]
[1743963604195,1.51626562,560.22,559.22,0.29852267]
[1743963604396,2.12780614,560.22,559.22,0.29852267]
[1743963604693,1.29215801,560.21,559.22,0.29852267]
[1743963605199,1.29215801,560.21,559.23,0.3576346]
[1743963605596,0.986,560.24,559.24,0.29847076]
[1743963605896,0.601,560.2,559.24,0.29847076]
[1743963606298,0.601,560.2,559.25,0.35762181]
[1743963606499,0.601,560.2,559.26,0.29847076]
[1743963607096,0.601,560.2,559.27,0.29844129]
[1743963607296,0.601,560.2,559.26,0.29844129]
[1743963608496,1.158,560.2,559.25,0.35762181]
[1743963608698,1.158,560.2,559.26,0.29846847]
[1743963608901,1.158,560.2,559.27,0.29846847]
[1743963609195,1.158,560.2,559.28,0.29846847]
[1743963609399,1.158,560.2,559.26,0.29846847]
[1743963609594,1.158,560.2,559.27,0.29846847]
[1743963609797,1.158,560.2,559.28,0.29846847]
[1743963609997,1.158,560.2,559.26,0.29846847]
[1743963610194,1.158,560.2,559.27,0.29846847]
[1743963610397,1.158,560.2,559.25,0.35762181]
[1743963610602,1.158,560.2,559.26,0.29844812]
[1743963612097,1.621,560.2,559.26,0.29844812]
[1743963619303,2.358,560.2,559.26,0.29844812]
[1743963620204,2.358,560.2,559.25,0.35762181]
[1743963620405,2.358,560.2,559.27,0.29843341]
[1743963620605,2.358,560.2,559.25,0.35762181]
[1743963620801,2.358,560.2,559.26,0.2984584]
[1743963622706,2.358,560.2,559.27,0.35760902]
[1743963622904,2.358,560.2,559.28,0.2984584]
[1743963623603,2.358,560.2,559.27,0.35760902]
[1743963624009,2.358,560.2,559.28,0.29855061]
[1743963624304,2.12507318,560.19,559.28,0.29855061]
[1743963624707,1.28927329,560.18,559.03,1.32770388]
[1743963624908,2.25707583,560.18,559.04,0.29861595]
[1743963625109,0.92166639,560.17,559.03,1.32770388]
[1743963625309,0.92166639,560.17,559.04,0.29862718]
[1743963625509,0.92166639,560.17,558.89,0.29862718]
[1743963625708,0.31089194,560.17,558.9,0.29862718]
[1743963625903,0.3284316,560.16,558.91,0.29862718]
[1743963626107,0.3284316,560.16,558.88,1.32770388]
[1743963626108,0.92124076,560.17,558.92,0.35783296]
[1743963626308,2.21051405,560.17,558.93,0.29862718]
[1743963626608,1.51392057,560.16,558.93,0.29862718]
[1743963626805,0.35702809,560.18,558.94,0.29858831]
[1743963627007,0.35702809,560.18,558.93,0.29858831]
[1743963627205,0.35702809,560.18,558.94,0.29858831]
[1743963627509,0.35702809,560.18,558.95,0.29858831]
[1743963627806,0.35702809,560.18,558.96,0.29858831]
[1743963628009,0.35702809,560.18,558.97,0.29858831]
[1743963628310,0.35702809,560.18,558.92,0.35783296]
[1743963628510,0.34583203,560.18,558.98,0.29858875]
[1743963628807,0.116,560.17,558.99,0.6563769]
[1743963629011,0.116,560.17,559.0,0.29858875]
[1743963629211,0.116,560.17,559.11,1.32770388]
[1743963629512,0.116,560.17,559.12,0.29858875]
[1743963629908,0.116,560.17,559.11,1.32770388]
[1743963630313,2.01449393,560.17,559.12,0.29808931]
[1743963630514,1.51272763,560.16,559.11,1.32770388]
[1743963630711,1.40418185,560.17,559.12,0.29806896]
[1743963631506,0.35704084,560.16,559.12,0.29806896]
[1743963631911,3.76939934,560.16,559.0,0.29806896]
[1743963632108,1.64522269,560.16,559.01,0.35777535]
[1743963632306,1.64522269,560.16,559.02,0.29806896]
[1743963632613,1.409,560.15,559.03,0.29806896]
[1743963632914,1.409,560.15,559.04,0.29806896]
[1743963633213,1.409,560.15,559.05,0.35774975]
[1743963633708,1.409,560.15,559.06,0.29803215]
[1743963634008,1.409,560.15,559.11,1.32770388]
[1743963634214,2.02043917,560.15,559.12,0.29803215]
[1743963634408,1.51545058,560.14,559.12,0.29803215]
[1743963634612,1.409,560.15,559.12,0.29803215]
[1743963636114,1.409,560.15,559.13,0.35769856]
[1743963636309,1.409,560.15,559.14,0.29803215]
[1743963636512,1.409,560.15,559.15,0.35768577]
[1743963636810,1.409,560.15,559.16,0.29803215]
[1743963637015,1.409,560.15,559.17,0.35767297]
[1743963637215,1.409,560.15,559.18,0.29803215]
[1743963637416,1.409,560.15,559.19,0.35766018]
[1743963637714,1.409,560.15,559.2,0.29803215]
[1743963637916,1.409,560.15,559.21,0.35764739]
[1743963638110,1.409,560.15,559.22,0.29803215]
[1743963638411,1.409,560.15,559.21,0.35764739]
[1743963638616,1.409,560.15,559.22,0.29799918]
[1743963642313,1.409,560.15,559.23,0.29799918]
[1743963642517,1.409,560.15,559.24,0.29799918]
[1743963642818,1.409,560.15,559.25,0.29799918]
[1743963643014,1.409,560.15,559.26,0.29799918]
[1743963643217,1.409,560.15,559.27,0.29799918]
[1743963643418,1.409,560.15,559.21,0.35764739]
[1743963643619,1.409,560.15,559.22,0.29777042]
[1743963643917,1.409,560.15,559.23,0.29777042]
[1743963644320,1.409,560.15,559.41,1.32770388]
[1743963644519,1.409,560.15,559.42,0.29777042]
[1743963645322,1.409,560.15,559.41,1.32770388]
[1743963645522,1.409,560.15,559.42,0.29785491]
[1743963646226,0.35704084,560.16,559.22,0.29785491]
[1743963646426,0.35704084,560.16,559.23,0.29785491]
[1743963646626,0.35704084,560.16,559.24,0.29785491]
[1743963646826,0.35704084,560.16,559.25,0.29785491]
[1743963647027,0.35704084,560.16,559.26,0.29785491]
[1743963647227,0.35704084,560.16,559.27,0.29785491]
[1743963647428,1.29517101,560.64,559.28,0.29785491]
[1743963647624,0.32815944,560.63,559.29,0.29785491]
[1743963647822,0.32815944,560.63,559.22,0.29785491]
[1743963648024,1.29517101,560.64,559.26,1.32770388]
[1743963648228,3.42967544,560.63,559.27,0.29785491]
[1743963648422,2.74950443,560.62,559.26,1.32770388]
[1743963648728,3.7580373,560.61,559.26,1.32770388]
[1743963648928,2.46286629,560.6,559.26,1.32770388]
[1743963649128,3.42967544,560.59,559.26,1.32770388]
[1743963649331,2.13450443,560.58,559.26,1.32770388]
[1743963649630,2.13450443,560.57,559.26,1.31696367]
[1743963649928,3.42967544,560.56,559.26,1.31696367]
[1743963650131,0.3567988,560.54,559.26,1.31696367]
[1743963650329,3.42967544,560.53,559.26,1.31696367]
[1743963650527,2.46285701,560.52,559.26,1.31696367]
[1743963650726,2.46285701,560.51,559.26,1.31696367]
[1743963650931,2.13450443,560.5,559.26,1.31696367]
[1743963651131,2.46285701,560.49,559.26,1.31696367]
[1743963651334,3.42967544,560.48,559.26,1.31696367]
[1743963651630,2.46285701,560.47,559.26,1.31696367]
[1743963651833,2.46285701,560.47,559.05,1.59324465]
[1743963651834,2.46285701,560.46,558.51,1.32770388]
[1743963652034,2.46303601,560.45,558.53,0.35808282]
[1743963652330,2.46303601,560.44,558.54,0.2987597]
[1743963652633,2.46303601,560.43,558.54,0.2987597]
[1743963652832,2.46303601,560.42,558.54,0.2987597]
[1743963653034,2.46303601,560.41,558.54,0.2987597]
[1743963653230,2.46303601,560.4,558.54,0.2987597]
[1743963653431,2.46303601,560.39,558.54,0.2987597]
[1743963653635,3.42967544,560.38,558.51,1.32770388]
[1743963653834,2.46326051,560.37,558.52,0.29898296]
[1743963654035,3.75843152,560.36,558.52,0.29898296]
[1743963654234,2.13450443,560.35,557.99,1.32770388]
[1743963654435,2.46326051,560.34,558.01,0.35841651]
[1743963654635,3.75843152,560.33,558.02,0.29904737]
[1743963654936,2.46326051,560.32,558.02,0.6102493]
[1743963655131,3.75843152,560.31,558.03,0.29904737]
[1743963655334,2.46326051,560.3,558.03,0.29904737]
[1743963655537,2.46326051,560.29,558.03,0.29904737]
[1743963655738,2.46326051,560.28,558.03,0.29904737]
[1743963655934,2.46326051,560.27,558.03,0.29904737]
[1743963656131,3.75843152,560.26,558.03,0.29904737]
[1743963656331,2.46326051,560.25,558.03,0.29904737]
[1743963656531,2.46326051,560.24,558.03,0.29904737]
[1743963656734,2.46326051,560.23,558.03,0.29904737]
[1743963656933,3.75843152,560.22,558.03,0.29904737]
[1743963657133,2.46326051,560.21,558.03,0.29904737]
[1743963657336,2.46326051,560.2,558.03,0.29904737]
[1743963657534,3.75843152,560.19,558.03,0.29904737]
[1743963657733,2.46326051,560.18,558.03,0.29904737]
[1743963657935,3.74373508,560.17,558.03,0.29904737]
[1743963658138,2.44856407,560.16,558.03,0.29904737]
[1743963658339,2.44856407,560.15,558.03,0.29904737]
[1743963658639,2.44856407,560.14,558.03,0.29904737]
[1743963658840,2.44856407,560.13,558.03,0.29904737]
[1743963659039,3.74373508,560.12,558.03,0.29904737]
[1743963659238,2.44856407,560.11,558.03,0.29904737]
[1743963659434,3.74373508,560.1,558.03,0.29904737]
[1743963659633,2.44856407,560.09,558.03,0.29904737]
[1743963659832,3.414979,560.08,558.03,0.29904737]
[1743963660039,2.44856407,560.07,558.03,0.29904737]
[1743963660241,2.44856407,560.06,558.03,0.29904737]
[1743963660538,2.44856407,560.06,558.02,0.31120193]
[1743963660539,3.414979,560.05,558.02,0.31120193]
[1743963660739,2.44851736,560.04,558.03,0.29893404]
[1743963661038,2.44851736,560.03,558.04,0.29893404]
[1743963661233,2.44851736,560.02,558.03,0.29893404]
[1743963661434,2.44851736,560.01,558.04,0.29893404]
[1743963661738,2.44851736,560.0,558.03,0.29893404]
[1743963661940,3.74368837,559.99,558.05,0.29893404]
[1743963662242,3.74368837,559.98,558.06,0.29893404]
[1743963662438,2.11980799,559.97,558.04,0.29893404]
[1743963662634,3.414979,559.96,558.05,0.29893404]
[1743963662837,2.11980799,559.95,558.03,0.31127291]
[1743963663034,2.44093355,559.94,558.06,0.29893404]
[1743963663235,2.44093355,559.94,558.03,0.31127291]
[1743963663236,3.73610456,559.93,558.04,0.29893404]
[1743963663435,2.11222418,559.92,558.07,0.29893404]
[1743963663634,2.11222418,559.91,558.08,0.29893404]
[1743963663939,3.73610456,559.9,558.04,0.29893404]
[1743963664141,3.73610456,559.89,558.05,0.29893404]
[1743963664340,2.44093355,559.88,558.04,0.29893404]
[1743963664540,2.11222418,559.87,558.06,0.29893404]
[1743963664740,2.44093355,559.86,558.05,0.29893404]
[1743963664936,2.44093355,559.85,558.06,0.29893404]
[1743963665140,3.40739519,559.84,558.06,0.29893404]
[1743963665337,2.44093355,559.83,558.07,0.29893404]
[1743963665542,3.73610456,559.82,558.02,0.29893404]
[1743963665738,3.73610456,559.81,558.03,0.29893404]
[1743963665943,2.44093355,559.8,558.02,0.29893404]
[1743963666142,2.44093355,559.79,558.02,0.29893404]
[1743963666343,3.73610456,559.78,558.02,0.29893404]
[1743963666543,2.44093355,559.77,558.02,0.29893404]
[1743963666744,2.11222418,559.76,558.01,0.35841651]
[1743963666940,2.44111771,559.75,558.02,0.29911632]
[1743963667146,2.44111771,559.74,558.02,0.29911632]
[1743963667446,2.44111771,559.73,558.02,0.29911632]
[1743963667638,2.44111771,559.72,558.02,0.29911632]
[1743963667844,3.73628872,559.71,558.02,0.29911632]
[1743963668046,2.44111771,559.7,558.02,0.29911632]
[1743963668247,3.73628872,559.69,558.02,0.29911632]
[1743963668448,2.44111771,559.68,558.02,0.29911632]
[1743963668646,3.73628872,559.67,558.02,0.29911632]
[1743963668846,0.9423421,559.66,558.02,0.29911632]
[1743963669041,1.82766914,559.65,558.02,0.29911632]
[1743963669240,0.32889353,559.64,558.02,0.29911632]
[1743963669744,1.29517101,559.63,558.02,0.29911632]
[1743963669946,0.32889353,559.62,558.02,0.29911632]
[1743963670147,1.29517101,559.61,558.02,0.29911632]
[1743963670442,0.32889353,559.6,558.02,0.29911632]
[1743963670647,1.29517101,559.59,558.01,0.35841651]
[1743963670847,3.39746868,559.59,558.01,0.35841651]
[1743963671043,3.72642744,559.58,558.01,0.35841651]
[1743963671247,2.43125643,559.57,558.02,0.29921073]
[1743963671548,2.43125643,559.56,558.01,0.35841651]
[1743963671751,3.72642744,559.55,558.01,0.35841651]
[1743963671947,2.43125643,559.54,558.01,0.35841651]
[1743963672147,1.29517101,559.55,558.01,0.35841651]
[1743963672148,2.43125643,559.53,558.01,0.35841651]
[1743963672345,2.43125643,559.52,558.01,0.35841651]
[1743963672546,1.4888491,559.51,558.01,0.35841651]
[1743963672751,1.81780786,559.5,558.01,0.35841651]
[1743963672952,1.81780786,559.49,558.01,0.35841651]
[1743963673153,1.81780786,559.48,558.01,0.35841651]
[1743963673352,0.32895876,559.47,558.01,0.35841651]
[1743963673551,2.10229767,559.46,558.01,0.35841651]
[1743963673748,2.10229767,559.45,558.01,0.35841651]
[1743963673954,2.43125643,559.44,558.01,0.35841651]
[1743963674148,2.43125643,559.43,558.01,0.35841651]
[1743963674351,2.43125643,559.42,555.93,1.32770388]
[1743963674551,3.39746868,559.41,555.93,1.32770388]
[1743963674853,2.10229767,559.4,555.94,0.31183634]
[1743963675048,1.29517101,559.41,555.94,0.31183634]
[1743963675049,2.43156403,559.39,556.11,0.35964107]
[1743963675248,2.43156403,559.38,556.12,0.2994837]
[1743963675452,2.43156403,559.37,556.13,0.2994837]
[1743963675654,2.43156403,559.36,556.14,0.2994837]
[1743963675954,0.32926636,559.35,556.15,0.2994837]
[1743963676156,0.32926636,559.34,556.16,0.2994837]
[1743963676455,1.29517101,559.35,556.11,0.35964107]
[1743963676456,0.32926636,559.33,556.17,0.2994837]
[1743963676655,2.43156403,559.34,556.18,0.2994837]
[1743963676857,1.81811546,559.33,556.19,0.2994837]
[1743963677062,1.81811546,559.32,556.2,0.2994837]
[1743963677354,0.32926636,559.31,556.21,0.2994837]
[1743963677554,0.32926636,559.3,556.22,0.2994837]
[1743963677755,1.29517101,559.29,556.22,0.2994837]
[1743963677957,0.32926636,559.28,556.23,0.2994837]
[1743963678352,1.29517101,559.27,556.24,0.2994837]
[1743963678553,1.62443737,559.27,556.24,0.2994837]
[1743963678754,0.32926636,559.26,556.25,0.2994837]
[1743963678953,2.41251615,559.26,556.26,0.2994837]
[1743963679154,0.32926636,559.25,556.27,0.2994837]
[1743963679355,3.70768716,559.25,556.12,0.2994837]
[1743963679562,2.41251615,559.24,556.13,0.2994837]
[1743963679758,1.62443737,559.23,556.14,0.2994837]
[1743963679960,0.32926636,559.22,556.15,0.2994837]
[1743963680259,2.41251615,559.22,556.16,0.2994837]
[1743963680558,0.32926636,559.21,556.17,0.2994837]
[1743963680858,1.62443737,559.21,556.18,0.2994837]
[1743963681060,0.648,559.2,556.18,0.2994837]
[1743963681252,0.32926636,559.19,556.19,0.2994837]
[1743963681456,2.21744666,559.19,556.2,0.2994837]
[1743963681656,1.81811546,559.18,556.2,0.2994837]
[1743963681860,0.90726636,559.17,556.21,0.2994837]
[1743963682059,0.32926636,559.16,556.22,0.2994837]
[1743963682356,0.32926636,559.16,556.23,0.2994837]
[1743963682552,0.92163783,559.16,556.24,0.2994837]
[1743963682752,0.32926636,559.15,556.25,0.2994837]
[1743963682953,2.38949066,559.15,556.26,0.2994837]
[1743963683255,0.32926636,559.14,556.27,0.2994837]
[1743963683456,1.62443737,559.14,556.28,0.2994837]
[1743963683660,3.35480323,559.14,556.11,0.35964107]
[1743963683859,3.68407029,559.13,556.12,0.29948378]
[1743963684056,1.79652781,559.12,556.13,0.29948378]
[1743963684255,0.32926706,559.11,556.14,0.29948378]
[1743963684465,0.32926706,559.12,556.15,0.29948378]
[1743963684657,1.79707447,559.14,556.16,0.29948378]
[1743963684961,0.32926706,559.13,556.17,0.29948378]
[1743963685164,0.32926706,559.14,556.18,0.29948378]
[1743963685366,0.32926706,559.16,556.19,0.29948378]
[1743963685561,0.692,559.17,556.11,0.35964107]
[1743963685864,0.32935691,559.16,556.12,0.29957336]
[1743963686062,0.32935691,559.16,556.13,0.29957336]
[1743963686260,0.32935691,559.16,556.14,0.29957336]
[1743963686465,0.32935691,559.16,556.15,0.29957336]
[1743963686659,0.32935691,559.16,556.16,0.29957336]
[1743963686865,0.32935691,559.16,556.17,0.29957336]
[1743963687065,0.32935691,559.15,556.17,0.29957336]
[1743963687258,0.32935691,559.14,556.18,0.29957336]
[1743963687466,0.32935691,559.16,556.19,0.29957336]
[1743963687766,0.32935691,559.16,556.11,0.35964107]
[1743963687767,0.32935691,559.15,556.2,0.29957336]
[1743963688063,0.32935691,559.14,556.21,0.29957336]
[1743963688267,0.32935691,559.13,556.22,0.29957336]
[1743963688459,0.32935691,559.12,556.23,0.29957336]
[1743963688658,0.32935691,559.11,556.24,0.29957336]
[1743963688863,0.32935691,559.1,556.25,0.29957336]
[1743963689068,0.32935691,559.09,556.26,0.29957336]
[1743963689263,0.32935691,559.08,556.27,0.29957336]
[1743963689460,0.32935691,559.07,556.28,0.29957336]
[1743963689659,0.32935691,559.06,556.29,0.29957336]
[1743963689963,0.32935691,559.05,556.3,0.29957336]
[1743963690165,0.32935691,559.04,556.31,0.29957336]
[1743963690367,0.32935691,559.03,556.32,0.29957336]
[1743963690568,3.30142525,559.09,556.11,0.35964107]
[1743963690860,2.38156011,559.08,556.12,0.29969526]
[1743963691064,0.3294817,559.07,556.13,0.29969526]
[1743963691262,0.3294817,559.06,556.14,0.29969526]
[1743963691463,0.3294817,559.05,556.15,0.29969526]
[1743963691659,0.3294817,559.04,556.15,0.29969526]
[1743963691964,0.3294817,559.04,556.16,0.29969526]
[1743963692159,0.3294817,559.04,556.17,0.29969526]
[1743963692365,0.3294817,559.04,556.18,0.29969526]
[1743963692561,0.3294817,559.04,556.19,0.29969526]
[1743963692763,0.3294817,559.04,556.2,0.29969526]
[1743963692973,0.3294817,559.04,556.21,0.29969526]
[1743963693161,0.7864817,559.03,556.22,0.29969526]
[1743963693366,0.3294817,559.02,556.23,0.29969526]
[1743963693566,0.3294817,559.02,556.24,0.29969526]
[1743963693762,0.3294817,559.02,556.25,0.29969526]
[1743963693970,0.3294817,559.02,556.26,0.29969526]
[1743963694170,0.31193837,559.01,556.27,0.29969526]
[1743963694471,0.3294817,559.0,556.28,0.29969526]
[1743963694673,0.3294817,559.0,556.29,0.29969526]
[1743963694868,0.3294817,559.0,556.3,0.29969526]
[1743963695063,0.3294817,559.0,556.31,0.29969526]
[1743963695269,0.3294817,559.0,556.32,0.29969526]
[1743963695472,0.3294817,559.0,556.33,0.29969526]
[1743963695672,0.9182989,559.0,556.34,0.29969526]
[1743963695864,0.3294817,558.99,556.35,0.29969526]
[1743963696063,1.57235759,558.99,556.35,0.29969526]
[1743963696269,0.3294817,558.98,556.36,0.29969526]
[1743963696463,1.78852576,558.98,556.37,0.29969526]
[1743963696765,0.3294817,558.97,556.38,0.29969526]
[1743963696965,0.3294817,558.97,556.39,0.29969526]
[1743963697165,0.3294817,558.98,556.4,0.29969526]
[1743963697367,0.3294817,558.97,556.41,0.29969526]
[1743963697565,0.3294817,558.96,556.42,0.29969526]
[1743963697773,1.57235759,558.97,556.15,0.29969526]
[1743963697969,0.3294817,558.96,556.16,0.29969526]
[1743963698170,2.3773946,558.96,556.17,0.29969526]
[1743963698369,0.3294817,558.95,556.15,0.29969526]
[1743963698566,0.3294817,558.94,556.16,0.29969526]
[1743963698774,0.3294817,558.93,556.17,0.29969526]
[1743963698974,0.32959792,558.92,556.18,0.29981058]
[1743963699174,0.32959792,558.91,556.19,0.29981058]
[1743963699473,0.32959792,558.9,556.2,0.29981058]
[1743963699675,0.555,558.92,556.14,0.31193837]
[1743963699676,1.14386884,558.92,556.14,0.31193837]
[1743963699871,1.14386884,558.92,556.11,0.35964107]
[1743963699872,0.32966225,558.91,556.15,0.29987368]
[1743963700172,0.32966225,558.9,556.16,0.29987368]
[1743963700373,0.32966225,558.89,556.12,0.29987368]
[1743963700568,0.32966225,558.88,556.13,0.29987368]
[1743963700766,3.29078879,558.9,556.12,0.29987368]
[1743963700767,0.32966225,558.87,556.12,0.29987368]
[1743963700969,0.32966225,558.86,556.13,0.29987368]
[1743963701170,0.32966225,558.85,556.14,0.31210622]
[1743963701468,0.32966225,558.84,556.15,0.29987368]
[1743963701672,1.01881751,558.83,556.15,0.29987368]
[1743963701868,0.32966225,558.83,556.16,0.29987368]
[1743963702073,0.32966225,558.83,556.15,0.29987368]
[1743963702268,0.32966225,558.82,556.15,0.29987368]
[1743963702574,2.0479129,558.84,556.16,0.29994013]
[1743963702772,0.32972964,558.83,556.15,0.29994013]
[1743963702968,0.32972964,558.84,556.16,0.29994013]
[1743963703167,0.32972964,558.83,556.15,0.29994013]
[1743963703368,0.32972964,558.82,556.16,0.29994013]
[1743963703570,0.32972964,558.81,556.17,0.29994013]
[1743963703773,0.32972964,558.8,556.15,0.29994013]
[1743963703973,1.24287589,558.85,556.14,0.31210622]
[1743963704170,0.32995467,558.79,556.16,0.30016342]
[1743963704370,0.32995467,558.78,556.17,0.30016342]
[1743963704675,1.83247074,558.85,556.14,0.31210622]
[1743963704676,1.46061925,558.84,556.14,0.31210622]
[1743963704872,0.32997238,558.83,556.15,0.30017927]
[1743963705176,0.32997238,558.82,556.15,0.30017927]
[1743963705372,0.32997238,558.81,556.15,0.30017927]
[1743963705571,1.01901609,558.8,556.15,0.30017927]
[1743963705871,0.32997238,558.79,556.12,0.30017927]
[1743963706072,0.32997238,558.78,556.13,0.30017927]
[1743963706270,0.32997238,558.77,556.12,0.30017927]
[1743963706475,0.32997238,558.76,556.13,0.30017927]
[1743963706672,1.24287589,558.77,556.11,0.35964107]
[1743963706673,0.32997238,558.75,556.12,0.30017927]
[1743963706870,0.32997238,558.74,556.13,0.30017927]
[1743963707070,0.32997238,558.73,556.14,0.30017927]
[1743963707269,0.32997238,558.72,556.12,0.30017927]
[1743963707573,0.32997238,558.71,556.12,0.30017927]
[1743963707777,0.32997238,558.7,556.12,0.30017927]
[1743963707981,0.32997238,558.69,556.12,0.30017927]
[1743963708184,0.32997238,558.68,556.12,0.30017927]
[1743963708481,0.32997238,558.67,556.12,0.30017927]
[1743963708676,0.32997238,558.66,556.12,0.30017927]
[1743963708876,0.32997238,558.65,556.12,0.30017927]
[1743963709077,0.32997238,558.64,556.12,0.30017927]
[1743963709278,1.57284827,558.63,556.12,0.30017927]
[1743963709479,0.32997238,558.62,556.12,0.30017927]
[1743963709684,1.57284827,558.61,556.12,0.30017927]
[1743963709880,0.32997238,558.6,556.12,0.30017927]
[1743963710081,1.46439131,558.59,556.11,0.35964107]
[1743963710381,1.57287611,558.58,556.12,0.30020648]
[1743963710587,0.33000022,558.57,556.12,0.30020648]
[1743963710884,1.57287611,558.56,556.12,0.30020648]
[1743963711085,1.57287611,558.55,556.12,0.30020648]
[1743963711285,0.33000022,558.54,556.12,0.30020648]
[1743963711480,1.57287611,558.53,556.12,0.30020648]
[1743963711681,0.33000022,558.52,556.12,0.30020648]
[1743963711878,0.33000022,558.51,556.12,0.30020648]
[1743963712188,1.79439153,558.5,556.12,0.30020648]
[1743963712387,0.33000022,558.49,556.12,0.30020648]
[1743963712577,0.33000022,558.48,556.12,0.30020648]
[1743963712783,1.24287589,558.47,556.11,0.35964107]
[1743963712979,0.32997816,558.46,556.12,0.30018471]
[1743963713184,0.32997816,558.45,556.12,0.30018471]
[1743963714180,0.32997816,558.44,556.12,0.30018471]
[1743963714385,0.32997816,558.43,556.12,0.30018471]
[1743963714589,0.32997816,558.42,556.12,0.30018471]
[1743963714886,1.57285405,558.41,556.12,0.30018471]
[1743963715082,0.32997816,558.4,556.12,0.30018471]
[1743963715279,0.32997816,558.39,556.12,0.30018471]
[1743963715590,0.32997816,558.38,556.13,0.30018471]
[1743963715886,0.32997816,558.37,556.14,0.30018471]
[1743963716084,0.32997816,558.36,556.12,0.30018471]
[1743963716280,0.32997816,558.4,556.13,0.30018471]
[1743963716494,2.38644392,558.4,556.12,0.30018471]
[1743963716681,2.38644392,558.4,556.13,0.30018471]
[1743963716890,1.57285405,558.39,556.12,0.30018471]
[1743963717185,0.32997816,558.38,556.12,0.30018471]
[1743963717381,2.38644392,558.38,556.12,0.30018471]
[1743963717582,0.32997816,558.37,556.13,0.30018471]
[1743963717781,1.57285405,558.37,556.14,0.30018471]
[1743963717980,0.32997816,558.36,556.15,0.30018471]
[1743963718185,2.38658356,558.36,556.16,0.30018471]
[1743963718480,1.57285405,558.35,556.17,0.30018471]
[1743963718685,1.57285405,558.35,556.11,0.35964107]
[1743963718686,0.32997816,558.34,556.12,0.30018471]
[1743963718882,2.38785405,558.34,556.12,0.30018471]
[1743963719085,2.05787589,558.34,556.13,0.30018471]
[1743963719287,0.31209923,558.33,556.12,0.30018471]
[1743963719486,0.64171013,558.33,556.14,0.30018471]
[1743963719687,0.31209923,558.33,556.13,0.30018471]
[1743963719887,0.31209923,558.33,556.14,0.30018471]
[1743963720086,0.31209923,558.33,556.15,0.30018471]
[1743963720286,0.31209923,558.33,556.11,0.35964107]
[1743963720487,0.31209923,558.33,556.12,0.29976024]
[1743963720687,0.815,558.34,556.13,0.29976024]
[1743963720885,0.815,558.34,556.12,0.29976024]
[1743963721091,0.815,558.34,556.11,0.35964107]
[1743963721292,0.815,558.34,556.12,0.29963561]
[1743963721590,0.815,558.34,556.13,0.29963561]
[1743963721785,0.815,558.34,556.14,0.29963561]
[1743963722190,0.815,558.34,556.15,0.29963561]
[1743963722491,0.815,558.34,556.16,0.29963561]
[1743963722788,0.815,558.34,556.17,0.29963561]
[1743963722987,0.459,558.33,556.18,0.29963561]
[1743963723188,0.459,558.33,556.12,0.31194536]
[1743963723189,0.459,558.33,556.19,0.29963561]
[1743963723386,0.459,558.33,556.2,0.29963561]
[1743963723589,0.459,558.33,556.21,0.29963561]
[1743963723788,0.459,558.33,556.22,0.29963561]
[1743963723991,0.459,558.33,556.11,0.35964107]
[1743963723992,0.459,558.33,556.23,0.29963561]
[1743963724188,0.459,558.33,556.24,0.29963561]
[1743963724388,1.118,558.33,556.25,0.29963561]
[1743963724587,1.118,558.33,556.26,0.29963561]
[1743963724992,1.118,558.33,556.17,1.31653437]
[1743963724993,1.118,558.33,556.27,0.29963561]
[1743963725195,1.118,558.33,556.28,0.29963561]
[1743963725394,1.118,558.33,556.18,0.31181119]
[1743963725588,1.118,558.33,556.19,0.29925995]
[1743963725792,1.118,558.33,556.2,0.29925995]
[1743963725995,1.118,558.33,556.21,0.29925995]
[1743963726295,1.118,558.33,556.22,0.29925995]
[1743963726600,1.118,558.33,556.23,0.29925995]
[1743963726794,1.901,558.33,556.23,0.29925995]
[1743963726993,1.901,558.33,556.24,0.29925995]
[1743963727193,1.901,558.33,556.25,0.29925995]
[1743963727393,1.901,558.33,556.26,0.29925995]
[1743963727591,1.901,558.33,556.57,1.31653437]
[1743963727794,1.901,558.33,556.58,0.29925995]
[1743963727996,1.901,558.33,556.59,0.29925995]
[1743963728189,1.901,558.33,556.6,0.29925995]
[1743963728393,1.901,558.33,556.61,0.29925995]
[1743963728594,0.783,558.33,556.61,0.29925995]
[1743963728789,0.783,558.33,556.62,0.29925995]
[1743963728993,0.783,558.33,556.63,0.29925995]
[1743963729394,0.783,558.33,556.57,1.31653437]
[1743963729395,0.47151953,558.33,556.64,0.29925995]
[1743963729694,0.47151953,558.33,556.65,0.29925995]
[1743963729895,0.115,558.58,556.65,0.29925995]
[1743963730091,0.115,558.58,556.66,0.29858714]
[1743963730292,0.115,558.58,556.67,0.29858714]
[1743963730489,0.115,558.58,556.68,0.29858714]
[1743963730691,0.115,558.58,556.69,0.29858714]